fUSD/lending_fUSD_20240629
["ID","MTS","AMOUNT","RATE_DAILY","PERIOD"]
[330646393,1719684656905,-500.0,0.00013997,3]
[330646394,1719684656915,-1042.57,0.00013997,3]
[330646395,1719684656925,-660.35,0.00013997,3]
[330646396,1719684656935,-500.0,0.00013997,3]
[330646397,1719684656945,-697.11,0.00013997,3]
[330646398,1719684656955,-500.0,0.00013997,3]
[330646399,1719684656964,-566.99,0.00013997,3]
[330646400,1719684656974,-500.0,0.00013997,3]
[330646401,1719684657172,-151.0,0.00013997,2]
[330646402,1719684657183,-500.0,0.00013997,3]
[330646403,1719684657193,-500.0,0.00013997,3]
[330646404,1719684657205,-151.0,0.00013997,2]
[330646405,1719684657215,-500.0,0.00013997,3]
[330646406,1719684657226,-500.0,0.00013997,3]
[330646407,1719684657236,-500.0,0.00013997,3]
[330646408,1719684657246,-500.0,0.00013997,3]
[330646409,1719684657256,-500.0,0.00013997,3]
[330646410,1719684657265,-1130.3,0.00013997,3]
[330646411,1719684657275,-522.92,0.00013997,3]
[330646412,1719684657284,-492.81682099,0.00013997,3]
[330646413,1719684657293,-500.0,0.00013997,3]
[330646414,1719684657303,-856.69,0.00013997,3]
[330646415,1719684657313,-500.0,0.00013997,3]
[330646416,1719684657322,-500.0,0.00013997,3]
[330646417,1719684657331,-643.86,0.00013997,3]
[330646418,1719684657341,-717.88,0.00013997,3]
[330646419,1719684657350,-1022.13,0.00013997,3]
[330646420,1719684657360,-1448.03,0.00013997,3]
[330646421,1719684657369,-500.0,0.00013997,3]
[330646422,1719684657379,-500.0,0.00013997,3]
[330646423,1719684657389,-1690.07,0.00013997,3]
[330646424,1719684657399,-500.0,0.00013997,3]
[330646425,1719684657408,-500.0,0.00013997,3]
[330646426,1719684657417,-250.0,0.00013997,3]
[330646427,1719684657428,-840.1,0.00013997,3]
[330646428,1719684657438,-500.0,0.00013997,3]
[330646429,1719684657448,-534.6,0.00013997,3]
[330646430,1719684657458,-151.0,0.00013997,2]
[330646431,1719684657467,-500.0,0.00013997,3]
[330646432,1719684657479,-824.94,0.00013997,3]
[330646433,1719684657489,-500.0,0.00013997,3]
[330646434,1719684657499,-500.0,0.00013997,2]
[330646435,1719684657507,-500.0,0.00013997,3]
[330646436,1719684657518,-500.0,0.00013997,3]
[330646437,1719684657530,-500.0,0.00013997,3]
[330646438,1719684657540,-500.0,0.00013997,3]
[330646439,1719684657550,-500.0,0.00013997,3]
[330646440,1719684657562,-1395.91,0.00013997,3]
[330646441,1719684657571,-500.0,0.00013997,3]
[330646442,1719684657581,-912.12,0.00013997,3]
[330646443,1719684657590,-1415.47,0.00013997,3]
[330646444,1719684657600,-1838.73,0.00013997,3]
[330646445,1719684657610,-563.9,0.00013997,3]
[330646446,1719684657619,-500.0,0.00013997,3]
[330646447,1719684657634,-500.0,0.00013997,3]
[330646448,1719684657644,-500.0,0.00013997,3]
[330646449,1719684657653,-500.0,0.00013997,3]
[330646450,1719684657662,-500.0,0.00013997,3]
[330646451,1719684657671,-500.0,0.00013997,3]
[330646452,1719684657680,-500.0,0.00013997,3]
[330646453,1719684657692,-500.0,0.00013997,3]
[330646454,1719684657702,-690.07,0.00013997,3]
[330646455,1719684657712,-671.63,0.00013997,3]
[330646456,1719684657724,-868.04,0.00013997,3]
[330646457,1719684657735,-500.0,0.00013997,3]
[330646458,1719684657745,-500.0,0.00013997,3]
[330646459,1719684657755,-1516.0,0.00013997,3]
[330646460,1719684657765,-1203.24,0.00013997,3]
[330646461,1719684657775,-738.5,0.00013997,3]
[330646462,1719684657784,-500.0,0.00013997,3]
[330646463,1719684657793,-500.0,0.00013997,3]
[330646464,1719684657802,-500.0,0.00013997,3]
[330646465,1719684657811,-500.0,0.00013997,3]
[330646466,1719684657821,-1594.12,0.00013997,3]
[330646467,1719684657830,-188.874782,0.00013997,2]
[330646468,1719684657839,-500.0,0.00013997,3]
[330646469,1719684657848,-188.874782,0.00013997,2]
[330646470,1719684657858,-500.0,0.00013997,3]
[330646471,1719684657867,-920.7,0.00013997,3]
[330646472,1719684657876,-500.0,0.00013997,3]
[330646473,1719684657886,-820.13,0.00013997,3]
[330646474,1719684657895,-500.0,0.00013997,3]
[330646475,1719684657905,-500.0,0.00013997,3]
[330646476,1719684657916,-151.0,0.00013997,2]
[330646477,1719684657927,-500.0,0.00013997,3]
[330646478,1719684657937,-678.01,0.00013997,3]
[330646479,1719684657947,-500.0,0.00013997,3]
[330646480,1719684657956,-500.0,0.00013997,3]
[330646481,1719684657966,-151.0,0.00013997,2]
[330646482,1719684657975,-500.0,0.00013997,3]
[330646483,1719684657984,-595.63,0.00013997,3]
[330646484,1719684657993,-500.0,0.00013997,3]
[330646485,1719684658002,-544.69,0.00013997,3]
[330646486,1719684658011,-493.508557,0.00013997,2]
[330646487,1719684658020,-500.0,0.00013997,3]
[330646488,1719684658029,-493.508557,0.00013997,2]
[330646489,1719684658038,-1237.63,0.00013997,3]
[330646490,1719684658047,-151.0,0.00013997,2]
[330646491,1719684658056,-500.0,0.00013997,3]
[330646492,1719684658066,-500.0,0.00013997,3]
[330646493,1719684658075,-1481.03,0.00013997,3]
[330646494,1719684658084,-500.0,0.00013997,3]
[330646495,1719684658094,-500.0,0.00013997,3]
[330646496,1719684658103,-500.0,0.00013997,3]
[330646497,1719684658112,-348.66,0.00013997,3]
[330646498,1719684658121,-593.46,0.00013997,3]
[330646499,1719684658130,-500.0,0.00013997,3]
[330646500,1719684658140,-1430.19,0.00013997,3]
[330646501,1719684658150,-378.2598868,0.00013997,3]
[330646502,1719684658159,-500.0,0.00013997,3]
[330646503,1719684658168,-500.0,0.00013997,3]
[330646504,1719684658178,-500.0,0.00013997,3]
[330646505,1719684658187,-1338.31,0.00013997,2]
[330646506,1719684658196,-603.60851865,0.00013997,3]
[330646507,1719684658206,-500.0,0.00013997,3]
[330646508,1719684658215,-500.0,0.00013997,3]
[330646509,1719684658225,-500.0,0.00013997,3]
[330646510,1719684658235,-899.83,0.00013997,3]
[330646511,1719684658245,-598.91,0.00013997,3]
[330646512,1719684658254,-500.0,0.00013997,3]
[330646513,1719684658263,-209.66596824,0.00013998,2]
[330646514,1719684658273,-500.0,0.00013998,3]
[330646515,1719684658283,-1222.23,0.00013998,3]
[330646516,1719684658292,-546.89,0.00013998,3]
[330646517,1719684658301,-500.0,0.00013998,3]
[330646518,1719684658310,-178.280932,0.00013998,2]
[330646519,1719684658319,-178.280932,0.00013998,2]
[330646520,1719684658329,-1315.11,0.00013998,3]
[330646521,1719684658339,-2194.85,0.00013998,3]
[330646522,1719684658349,-1958.38,0.00013998,3]
[330646523,1719684658359,-1741.43,0.00013998,3]
[330646524,1719684658367,-151.0,0.00013998,2]
[330646525,1719684658377,-819.49,0.00013998,3]
[330646526,1719684658387,-1640.17,0.00013998,3]
[330646527,1719684658396,-151.0,0.00013998,2]
[330646528,1719684658405,-151.0,0.00013998,2]
[330646529,1719684658415,-2262.95,0.00013998,3]
[330646530,1719684658424,-151.0,0.00013998,2]
[330646531,1719684658433,-2948.95,0.00013998,3]
[330646532,1719684658443,-1937.53,0.00013998,3]
[330646533,1719684658452,-1977.14,0.00013998,3]
[330646534,1719684658461,-4754.34,0.00013998,3]
[330646535,1719684658470,-151.0,0.00013998,2]
[330646536,1719684658482,-500.0,0.00013998,3]
[330646537,1719684658492,-611.6,0.00013998,3]
[330646538,1719684658502,-857.78,0.00013998,3]
[330646539,1719684658511,-1370.69,0.00013998,3]
[330646540,1719684658524,-2420.49,0.00013998,3]
[330646541,1719684658534,-1069.44449777,0.00013998,3]
[330646542,1719684658551,-2671.07007893,0.00013998,3]
[330646543,1719684658563,-29.7454233,0.00013998,3]
[330646544,1719684658575,-3483.55,0.00013998,3]
[330646545,1719684658584,-371.80856298,0.00013998,3]
[330646546,1719684658598,-896.01,0.00013998,3]
[330646547,1719684658612,-602.70143702,0.00013998,3]
[330646548,1719684658622,-511.45,0.00013998,3]
[330646549,1719684658631,-447.95933361,0.00013998,2]
[330646550,1719684658641,-52.04066639,0.00013998,2]
[330646551,1719684658651,-1605.17,0.00013998,3]
[330646552,1719684658659,-2337.63,0.00013998,3]
[330646553,1719684658668,-398.7255415,0.00013998,3]
[330646554,1719684658685,-3284.6344585,0.00013998,3]
[330646555,1719684658694,-1307.51732765,0.00013998,2]
[330646556,1719684658707,-350.70372601,0.00013998,2]
[330646557,1719684658718,-4258.25923733,0.00013998,2]
[330646558,1719684658727,-3303.9,0.00013998,3]
[330646559,1719684658736,-3087.13,0.00013998,3]
[330646560,1719684658745,-3904.79,0.00013998,3]
[330646561,1719684658754,-500.0,0.00013998,3]
[330646562,1719684658764,-500.0,0.00013998,3]
[330646563,1719684658773,-1282.67,0.00013998,3]
[330646564,1719684658782,-1667.66,0.00013998,3]
[330646565,1719684658791,-851.17,0.00013998,3]
[330646566,1719684658800,-500.0,0.00013998,3]
[330646567,1719684658809,-1331.71,0.00013998,3]
[330646568,1719684658818,-2356.5,0.00013998,3]
[330646569,1719684658830,-3427.07,0.00013998,3]
[330646570,1719684658839,-188.874782,0.00013998,2]
[330646571,1719684658848,-188.874782,0.00013998,2]
[330646572,1719684658858,-500.0,0.00013998,3]
[330646573,1719684658867,-1812.07,0.00013998,3]
[330646574,1719684658876,-7950.38,0.00013998,3]
[330646575,1719684658885,-8232.33,0.00013998,3]
[330646576,1719684658894,-2530.11,0.00013998,3]
[330646577,1719684658903,-1457.64,0.00013998,3]
[330646578,1719684658912,-151.0,0.00013998,2]
[330646579,1719684658922,-151.0,0.00013998,2]
[330646580,1719684658931,-518.46,0.00013998,3]
[330646581,1719684658941,-3125.16,0.00013998,3]
[330646582,1719684658949,-493.508557,0.00013998,2]
[330646583,1719684658959,-1024.39,0.00013998,3]
[330646584,1719684658968,-493.508557,0.00013998,2]
[330646585,1719684658977,-151.0,0.00013998,2]
[330646586,1719684658986,-4912.25,0.00013998,3]
[330646587,1719684658995,-988.41109091,0.00013998,3]
[330646588,1719684659007,-404.13890909,0.00013998,3]
[330646589,1719684659016,-3768.6,0.00013998,3]
[330646590,1719684659025,-2086.84,0.00013998,3]
[330646591,1719684659034,-2021.5,0.00013998,3]
[330646592,1719684659043,-3367.33,0.00013998,3]
[330646593,1719684659052,-802.69,0.00013998,3]
[330646594,1719684659061,-500.0,0.00013998,3]
[330646595,1719684659070,-256.272858,0.00013998,2]
[330646596,1719684659080,-256.272858,0.00013998,2]
[330646597,1719684659089,-1694.6,0.00013998,3]
[330646598,1719684659099,-151.0,0.00013998,2]
[330646599,1719684659108,-151.0,0.00013998,2]
[330646600,1719684659118,-1549.62,0.00013998,3]
[330646601,1719684659128,-500.0,0.00013998,3]
[330646602,1719684659137,-698.79,0.00013998,3]
[330646603,1719684659147,-1338.31,0.00013998,2]
[330646604,1719684659156,-4125.21,0.00013998,3]
[330646605,1719684659165,-1522.62,0.00013998,3]
[330646606,1719684659174,-1225.29,0.00013998,3]
[330646607,1719684659184,-4438.26,0.00013998,3]
[330646608,1719684659196,-4389.61,0.00013998,3]
[330646609,1719684659206,-4987.2,0.00013998,3]
[330646610,1719684659216,-151.0,0.00013998,2]
[330646611,1719684659225,-772.73,0.00013999,3]
[330646612,1719684659235,-1028.67,0.00013999,3]
[330646613,1719684659245,-1525.52,0.00013999,3]
[330646614,1719684659255,-500.0,0.00013999,3]
[330646615,1719684659264,-389.63750765,0.00013999,3]
[330646616,1719684659273,-1145.38,0.00013999,3]
[330646617,1719684659282,-500.0,0.00013999,3]
[330646618,1719684659292,-500.0,0.00013999,3]
[330646619,1719684659301,-1288.8,0.00013999,3]
[330646620,1719684659310,-500.0,0.00013999,3]
[330646621,1719684659319,-609.8,0.00013999,3]
[330646622,1719684659330,-705.88,0.00013999,3]
[330646623,1719684659339,-500.0,0.00013999,3]
[330646624,1719684659348,-500.0,0.00013999,3]
[330646625,1719684659357,-500.0,0.00013999,3]
[330646626,1719684659367,-599.88,0.00013999,3]
[330646627,1719684659376,-500.0,0.00013999,3]
[330646628,1719684659385,-747.26,0.00013999,3]
[330646629,1719684659394,-500.0,0.00013999,3]
[330646630,1719684659403,-500.0,0.00013999,3]
[330646631,1719684659414,-1099.2,0.00013999,3]
[330646632,1719684659423,-736.63,0.00013999,3]
[330646633,1719684659433,-892.89,0.00013999,3]
[330646634,1719684659442,-551.54,0.00013999,3]
[330646635,1719684659452,-500.0,0.00013999,3]
[330646636,1719684659462,-1034.84,0.00013999,3]
[330646637,1719684659472,-500.0,0.00013999,3]
[330646638,1719684659483,-500.0,0.00013999,3]
[330646639,1719684659493,-500.0,0.00013999,3]
[330646640,1719684659503,-700.98,0.00013999,3]
[330646641,1719684659512,-683.03,0.00013999,3]
[330646642,1719684659524,-517.06,0.00013999,3]
[330646643,1719684659534,-667.58,0.00013999,3]
[330646644,1719684659543,-500.0,0.00013999,3]
[330646645,1719684659552,-500.0,0.00013999,3]
[330646646,1719684659563,-500.0,0.00013999,3]
[330646647,1719684659572,-631.88,0.00013999,3]
[330646648,1719684659581,-500.0,0.00013999,3]
[330646649,1719684659591,-500.0,0.00013999,3]
[330646650,1719684659603,-500.0,0.00013999,3]
[330646651,1719684659614,-1244.86,0.00013999,3]
[330646652,1719684659626,-500.0,0.00013999,3]
[330646653,1719684659636,-1044.01,0.00013999,3]
[330646654,1719684659646,-1552.72,0.00013999,3]
[330646655,1719684659654,-1801.86,0.00013999,3]
[330646656,1719684659663,-500.0,0.00013999,3]
[330646657,1719684659673,-1263.58,0.00013999,3]
[330646658,1719684659682,-503.78,0.00013999,3]
[330646659,1719684659691,-500.0,0.00013999,3]
[330646660,1719684659700,-500.0,0.00013999,3]
[330646661,1719684659709,-1349.61,0.00013999,3]
[330646662,1719684659719,-1794.13,0.00013999,3]
[330646663,1719684659729,-1483.71,0.00013999,3]
[330646664,1719684659738,-2531.54,0.00013999,3]
[330646665,1719684659747,-500.0,0.00013999,3]
[330646666,1719684659758,-500.0,0.00013999,3]
[330646667,1719684659768,-1068.66,0.00013999,3]
[330646668,1719684659777,-500.0,0.00013999,3]
[330646669,1719684659786,-500.0,0.00013999,3]
[330646670,1719684659795,-500.0,0.00013999,3]
[330646671,1719684659804,-500.0,0.00013999,3]
[330646672,1719684659814,-500.0,0.00013999,3]
[330646673,1719684659824,-590.91,0.00013999,3]
[330646674,1719684659833,-1269.25,0.00013999,3]
[330646675,1719684659842,-500.0,0.00013999,3]
[330646676,1719684659851,-672.68,0.00013999,3]
[330646677,1719684659861,-1158.92,0.00013999,3]
[330646678,1719684659870,-500.0,0.00013999,3]
[330646679,1719684659879,-500.0,0.00013999,3]
[330646680,1719684659889,-1329.96,0.00013999,3]
[330646681,1719684659898,-1870.04,0.00013999,3]
[330646682,1719684659907,-1046.81,0.00013999,3]
[330646683,1719684659916,-500.0,0.00013999,3]
[330646684,1719684659925,-866.38,0.00013999,3]
[330646685,1719684659934,-647.42,0.00013999,3]
[330646686,1719684659943,-500.0,0.00013999,3]
[330646687,1719684659952,-500.0,0.00013999,3]
[330646688,1719684659962,-1166.35,0.00013999,3]
[330646689,1719684659972,-978.03,0.00013999,3]
[330646690,1719684659981,-500.0,0.00013999,3]
[330646691,1719684659991,-500.0,0.00013999,3]
[330646692,1719684660002,-783.12,0.00013999,3]
[330646693,1719684660011,-551.3,0.00013999,3]
[330646694,1719684660021,-500.0,0.00013999,3]
[330646695,1719684660030,-500.0,0.00013999,3]
[330646696,1719684660039,-2189.42,0.00013999,3]
[330646697,1719684660049,-500.0,0.00013999,3]
[330646698,1719684660058,-178.280932,0.00013999,2]
[330646699,1719684660068,-500.0,0.00013999,3]
[330646700,1719684660080,-1003.35,0.00013999,3]
[330646701,1719684660089,-178.280932,0.00013999,2]
[330646702,1719684660098,-1083.21,0.00013999,3]
[330646703,1719684660108,-665.13,0.00013999,3]
[330646704,1719684660117,-1751.72,0.00013999,3]
[330646705,1719684660126,-1261.12,0.00013999,3]
[330646706,1719684660135,-1301.26,0.00013999,3]
[330646707,1719684660144,-1462.06,0.00013999,3]
[330646708,1719684660153,-959.49,0.00013999,2]
[330646709,1719684660162,-1876.75,0.00013999,3]
[330646710,1719684660171,-500.0,0.00013999,3]
[330646711,1719684660181,-1792.61,0.00013999,3]
[330646712,1719684660190,-500.0,0.00013999,3]
[330646713,1719684660199,-500.0,0.00013999,3]
[330646714,1719684660208,-151.0,0.00013999,2]
[330646715,1719684660221,-1049.49,0.00013999,3]
[330646716,1719684660230,-1730.93,0.00013999,3]
[330646717,1719684660240,-634.98,0.00013999,3]
[330646718,1719684660250,-359.24908841,0.00013999,3]
[330646719,1719684660259,-934.44,0.00013999,3]
[330646720,1719684660268,-500.0,0.00013999,3]
[330646721,1719684660278,-1919.42,0.00013999,3]
[330646722,1719684660288,-598.32,0.00013999,3]
[330646723,1719684660298,-887.07,0.00013999,3]
[330646724,1719684660307,-1247.44691485,0.00013999,3]
[330646725,1719684660322,-454.46308515,0.00013999,3]
[330646726,1719684660331,-45.53691485,0.00013999,3]
[330646727,1719684660343,-616.11308515,0.00013999,3]
[330646728,1719684660352,-159.32989642,0.00013999,3]
[330646729,1719684660363,-340.67010358,0.00013999,3]
[330646730,1719684660372,-89.42085977,0.00013999,3]
[330646731,1719684660384,-413.28914023,0.00013999,3]
[330646732,1719684660394,-731.29,0.00013999,3]
[330646733,1719684660403,-1902.19,0.00013999,3]
[330646734,1719684660412,-151.0,0.00013999,2]
[330646735,1719684660422,-500.0,0.00013999,3]
[330646736,1719684660431,-517.5,0.00013999,3]
[330646737,1719684660440,-1748.42,0.00013999,3]
[330646738,1719684660450,-232.90255569,0.00013999,3]
[330646739,1719684660462,-771.80744431,0.00013999,3]
[330646740,1719684660472,-500.0,0.00013999,3]
[330646741,1719684660484,-1901.47,0.00013999,3]
[330646742,1719684660494,-500.0,0.00013999,3]
[330646743,1719684660504,-500.0,0.00013999,3]
[330646744,1719684660514,-382.79336708,0.00013999,3]
[330646745,1719684660530,-500.0,0.00013999,3]
[330646746,1719684660539,-1586.78,0.00013999,3]
[330646747,1719684660548,-700.34,0.00013999,3]
[330646748,1719684660558,-725.96,0.00013999,3]
[330646749,1719684660568,-970.07,0.00013999,3]
[330646750,1719684660579,-2263.2,0.00013999,3]
[330646751,1719684660588,-1345.95,0.00013999,3]
[330646752,1719684660599,-932.58,0.00013999,3]
[330646753,1719684660609,-682.33,0.00013999,3]
[330646754,1719684660619,-500.0,0.00013999,3]
[330646755,1719684660628,-1191.79,0.00013999,3]
[330646756,1719684660638,-1228.1,0.00013999,3]
[330646757,1719684660647,-2919.93,0.00013999,3]
[330646758,1719684660656,-500.0,0.00013999,3]
[330646759,1719684660666,-291.95217,0.00013999,2]
[330646760,1719684660676,-500.0,0.00013999,3]
[330646761,1719684660685,-1120.18,0.00013999,3]
[330646762,1719684660695,-1123.27,0.00013999,3]
[330646763,1719684660704,-500.0,0.00013999,3]
[330646764,1719684660713,-1562.84,0.00013999,3]
[330646765,1719684660723,-762.5,0.00013999,3]
[330646766,1719684660731,-1011.15,0.00013999,3]
[330646767,1719684660740,-534.18,0.00013999,3]
[330646768,1719684660750,-500.0,0.00013999,3]
[330646769,1719684660759,-500.0,0.00013999,3]
[330646770,1719684660768,-502.09300765,0.00013999,3]
[330646771,1719684660778,-500.0,0.00013999,3]
[330646772,1719684660787,-1260.53,0.00013999,3]
[330646773,1719684660796,-500.0,0.00013999,3]
[330646774,1719684660807,-1690.33,0.00013999,3]
[330646775,1719684660816,-1622.24,0.00013999,3]
[330646776,1719684660829,-2044.24,0.00013999,3]
[330646777,1719684660838,-151.0,0.00013999,2]
[330646778,1719684660848,-500.0,0.00013999,3]
[330646779,1719684660858,-1167.29,0.00013999,3]
[330646780,1719684660867,-500.0,0.00013999,2]
[330646781,1719684660876,-500.0,0.00013999,2]
[330646782,1719684660885,-500.0,0.00013999,2]
[330646783,1719684660895,-500.0,0.00013999,2]
[330646784,1719684660903,-500.0,0.00013999,2]
[330646785,1719684660913,-500.0,0.00013999,2]
[330646786,1719684660922,-1583.73,0.00013999,3]
[330646787,1719684660931,-500.0,0.00013999,2]
[330646788,1719684660941,-500.0,0.00013999,2]
[330646789,1719684660950,-252.6572465,0.00013999,2]
[330646790,1719684660960,-2288.11,0.00013999,3]
[330646791,1719684660969,-660.03337944,0.00013999,3]
[330646792,1719684661663,-363.53662056,0.00013999,3]
[330646793,1719684661673,-500.0,0.00013999,3]
[330646794,1719684661683,-500.0,0.00013999,3]
[330646795,1719684661692,-500.0,0.00013999,3]
[330646796,1719684661702,-502.58,0.00013999,3]
[330646797,1719684661713,-500.0,0.00013999,3]
[330646798,1719684661723,-500.0,0.00013999,3]
[330646799,1719684661734,-2074.4,0.00013999,3]
[330646800,1719684661744,-1461.35,0.00013999,3]
[330646801,1719684661754,-1086.0,0.00013999,3]
[330646802,1719684661764,-2591.41,0.00013999,3]
[330646803,1719684661774,-507.08,0.00013999,3]
[330646804,1719684661783,-500.0,0.00013999,3]
[330646805,1719684661792,-864.81,0.00013999,3]
[330646806,1719684661801,-500.0,0.00013999,3]
[330646807,1719684661810,-3067.65,0.00013999,3]
[330646808,1719684661820,-551.18,0.00013999,3]
[330646809,1719684661833,-1264.33844365,0.00013999,3]
[330646810,1719684661845,-1174.09155635,0.00013999,3]
[330646811,1719684661855,-607.46,0.00013999,3]
[330646812,1719684661864,-430.88039183,0.00013999,3]
[330646813,1719684661896,-69.11960817,0.00013999,3]
[330646814,1719684661906,-500.0,0.00013999,3]
[330646815,1719684661915,-500.0,0.00013999,3]
[330646816,1719684661925,-500.0,0.00013999,3]
[330646817,1719684661935,-500.0,0.00013999,3]
[330646818,1719684661944,-1255.36,0.00013999,3]
[330646819,1719684661953,-713.06,0.00013999,3]
[330646820,1719684661962,-2212.91,0.00013999,3]
[330646821,1719684661972,-500.0,0.00013999,3]
[330646822,1719684661981,-500.0,0.00013999,3]
[330646823,1719684661991,-500.0,0.00013999,3]
[330646824,1719684662000,-500.0,0.00013999,3]
[330646825,1719684662010,-807.97,0.00013999,3]
[330646826,1719684662019,-2318.41,0.00013999,3]
[330646827,1719684662029,-188.874782,0.00013999,2]
[330646828,1719684662039,-188.874782,0.00013999,2]
[330646829,1719684662048,-1364.07,0.00013999,3]
[330646830,1719684662058,-500.0,0.00013999,3]
[330646831,1719684662068,-2115.73,0.00013999,3]
[330646832,1719684662079,-500.0,0.00013999,3]
[330646833,1719684662089,-500.0,0.00013999,3]
[330646834,1719684662098,-500.0,0.00013999,3]
[330646835,1719684662109,-500.0,0.00013999,3]
[330646836,1719684662119,-1124.4,0.00013999,3]
[330646837,1719684662129,-151.0,0.00013999,2]
[330646838,1719684662139,-1741.56,0.00013999,3]
[330646839,1719684662149,-654.23,0.00013999,3]
[330646840,1719684662159,-1453.3,0.00013999,3]
[330646841,1719684662168,-500.0,0.00013999,3]
[330646842,1719684662177,-493.508557,0.00013999,2]
[330646843,1719684662187,-493.508557,0.00013999,2]
[330646844,1719684662196,-151.0,0.00013999,2]
[330646845,1719684662206,-500.0,0.00013999,3]
[330646846,1719684662216,-615.63,0.00013999,3]
[330646847,1719684662225,-724.46,0.00013999,3]
[330646848,1719684662235,-500.0,0.00013999,3]
[330646849,1719684662244,-925.64,0.00013999,3]
[330646850,1719684662254,-500.0,0.00013999,3]
[330646851,1719684662264,-635.11,0.00013999,3]
[330646852,1719684662273,-500.0,0.00013999,3]
[330646853,1719684662283,-1899.63,0.00013999,3]
[330646854,1719684662292,-256.272858,0.00013999,2]
[330646855,1719684662302,-256.272858,0.00013999,2]
[330646856,1719684662311,-1205.73,0.00013999,3]
[330646857,1719684662321,-919.57,0.00013999,3]
[330646858,1719684662332,-151.0,0.00013999,2]
[330646859,1719684662342,-3606.38,0.00013999,3]
[330646860,1719684662353,-1009.7,0.00013999,3]
[330646861,1719684662362,-151.0,0.00013999,2]
[330646862,1719684662373,-827.33,0.00013999,3]
[330646863,1719684662382,-892.10234,0.00013999,2]
[330646864,1719684662392,-500.0,0.00013999,3]
[330646865,1719684662402,-1338.31,0.00013999,2]
[330646866,1719684662411,-150.0,0.00013999,7]
[330646867,1719684662421,-1338.31,0.00013999,2]
[330646868,1719684662430,-1338.31,0.00013999,2]
[330646869,1719684662440,-1338.31,0.00013999,2]
[330646870,1719684662451,-150.0,0.00013999,7]
[330646871,1719684662461,-1338.31,0.00013999,2]
[330646872,1719684662472,-1338.31,0.00013999,2]
[330646873,1719684662483,-505.63787069,0.00013999,2]
[330646874,1719684665118,371.14,0.00011115,2]
[330646876,1719684805932,155.0,0.00012314,2]
[330646878,1719684817074,863.98574339,0.00011199,2]
[330646879,1719684817096,10000.0,0.00011199,2]
[330646880,1719684817118,8752.02683201,0.00011199,2]
[330646881,1719684840085,809.33170539,0.00012302,2]
[330646882,1719684840334,395.68670851,0.00012314,2]
[330646884,1719684853485,42.95475409,0.00012314,2]
[330646885,1719684853508,112.13728123,0.00012314,2]
[330646887,1719684870687,156.8,0.0001399,30]
[330646891,1719684923641,684.44148417,0.00012302,2]
[330646893,1719684990193,156.8,0.0001399,30]
[330646895,1719685201930,387.42,0.00010934,2]
[330646896,1719685363189,170.17725265,0.00012314,2]
[330646897,1719685474493,290.37415106,0.00012314,2]
[330646898,1719685484626,155.0,0.00012314,2]
[330646899,1719685486612,2004.4104095,0.00012273,2]
[330646900,1719685528061,698.083211,0.00012592,2]
[330646902,1719685588631,155.0,0.00012273,2]